bitfinex-derivatives/quotes_BTCF0:USTF0_20250724
["timestamp","ask_amount","ask_price","bid_price","bid_amount"]
[1753369404231,0.00150239,119390.0,119380.0,0.5282406]
[1753369404534,0.62694239,119390.0,119380.0,0.5282406]
[1753369404829,0.79436899,119390.0,119380.0,0.53165009]
[1753369405222,0.79536899,119390.0,119380.0,0.53165009]
[1753369405626,0.62794239,119390.0,119380.0,0.53165009]
[1753369405834,0.62794239,119390.0,119380.0,0.59821029]
[1753369406021,0.62794239,119390.0,119380.0,1.01282968]
[1753369406527,0.62894239,119390.0,119380.0,1.01282968]
[1753369407124,0.62894239,119390.0,119380.0,0.59821029]
[1753369407331,0.62894239,119390.0,119380.0,1.01282968]
[1753369408023,0.62894239,119390.0,119380.0,1.37282968]
[1753369408228,0.62894239,119390.0,119380.0,0.95901029]
[1753369408531,0.62894239,119390.0,119380.0,1.37362968]
[1753369408727,0.62894239,119390.0,119380.0,1.01282968]
[1753369409224,0.62894239,119390.0,119380.0,0.59821029]
[1753369410719,0.80224899,119390.0,119380.0,0.59821029]
[1753369410932,1.21686838,119390.0,119380.0,0.59821029]
[1753369411125,0.58554838,119390.0,119380.0,0.59821029]
[1753369411427,1.21718838,119390.0,119380.0,0.2340008]
[1753369411732,1.16336899,119390.0,119380.0,0.2340008]
[1753369412028,1.57798838,119390.0,119380.0,0.2340008]
[1753369412228,1.21718838,119390.0,119380.0,0.2340008]
[1753369412429,1.57798838,119390.0,119380.0,0.2340008]
[1753369412925,1.22048899,119390.0,119380.0,0.2340008]
[1753369413131,1.63510838,119390.0,119380.0,0.2340008]
[1753369415229,0.85968899,119390.0,119380.0,0.2340008]
[1753369415428,1.22048899,119390.0,119380.0,0.2340008]
[1753369415627,1.27430838,119390.0,119380.0,0.2340008]
[1753369415926,0.06062239,119390.0,119380.0,0.2838408]
[1753369416125,0.69102239,119390.0,119380.0,0.8368208]
[1753369417134,0.69102239,119390.0,119380.0,0.7640008]
[1753369417836,0.64138239,119390.0,119380.0,1.25144019]
[1753369418129,0.64138239,119390.0,119380.0,0.8368208]
[1753369418334,0.64138239,119390.0,119380.0,1.25144019]
[1753369418737,0.64138239,119390.0,119380.0,0.8368208]
[1753369419435,0.00350239,119390.0,119380.0,1.58144019]
[1753369419631,0.63298239,119390.0,119380.0,1.58144019]
[1753369420039,0.63741239,119390.0,119380.0,0.8368208]
[1753369420238,0.63709239,119390.0,119380.0,0.8368208]
[1753369420443,0.00793239,119390.0,119380.0,0.8368208]
[1753369420644,0.63246239,119390.0,119380.0,1.25144019]
[1753369421636,0.63246239,119390.0,119380.0,1.59144019]
[1753369422336,0.00350239,119390.0,119380.0,1.59144019]
[1753369422642,0.63158239,119390.0,119380.0,1.3443488]
[1753369423043,0.63158239,119390.0,119380.0,1.75896819]
[1753369423244,0.50477239,119390.0,119380.0,1.75896819]
[1753369423652,0.50477239,119390.0,119380.0,1.59144019]
[1753369423948,0.63983606,119400.0,119390.0,0.1674266]
[1753369424147,0.63983606,119400.0,119390.0,0.79502217]
[1753369424348,0.63983606,119400.0,119390.0,1.20964156]
[1753369424549,0.63983606,119400.0,119390.0,0.79502217]
[1753369425855,0.01167606,119400.0,119390.0,1.20964156]
[1753369426052,0.63999606,119400.0,119390.0,1.20964156]
[1753369426448,0.63999606,119400.0,119390.0,0.79502217]
[1753369426747,0.76560606,119400.0,119390.0,1.21064156]
[1753369426951,0.63999606,119400.0,119390.0,1.21064156]
[1753369427761,0.63999606,119400.0,119390.0,0.79602217]
[1753369428054,0.63999606,119400.0,119390.0,1.21064156]
[1753369428455,0.63999606,119400.0,119390.0,1.18125599]
[1753369428753,0.63999606,119400.0,119390.0,1.21071727]
[1753369429156,0.76560606,119400.0,119390.0,1.21071727]
[1753369429545,0.81519606,119400.0,119390.0,0.62867128]
[1753369429748,0.98260866,119400.0,119390.0,0.62867128]
[1753369430246,0.98260866,119400.0,119390.0,0.07607128]
[1753369430247,1.39722805,119400.0,119390.0,0.07607128]
[1753369430648,0.98260866,119400.0,119390.0,0.07607128]
[1753369430952,1.34340866,119400.0,119390.0,0.07607128]
[1753369431151,0.98260866,119400.0,119390.0,0.04661]
[1753369431352,0.76890805,119400.0,119390.0,0.03046128]
[1753369431658,0.81331606,119400.0,119390.0,0.001]
[1753369431859,0.18687606,119400.0,119390.0,0.001]
[1753369432357,0.63783606,119400.0,119390.0,0.43587128]
[1753369432562,0.63983606,119400.0,119390.0,0.43587128]
[1753369432756,0.81503606,119400.0,119390.0,0.43587128]
[1753369433155,0.18987606,119400.0,119390.0,0.43587128]
[1753369433351,0.81623606,119400.0,119390.0,0.43587128]
[1753369433659,0.81623606,119400.0,119390.0,0.39026128]
[1753369433660,1.23085545,119400.0,119390.0,0.39026128]
[1753369433859,1.23185545,119400.0,119390.0,0.39026128]
[1753369434053,0.81723606,119400.0,119390.0,0.39026128]
[1753369434353,0.81723606,119400.0,119390.0,0.43587128]
[1753369434560,0.81623606,119400.0,119390.0,0.43587128]
[1753369435051,0.81623606,119400.0,119390.0,0.55399128]
[1753369435252,0.81623606,119400.0,119390.0,0.43587128]
[1753369436860,0.81323606,119400.0,119390.0,0.43587128]
[1753369437052,0.81243606,119400.0,119390.0,0.62867128]
[1753369437557,0.81171606,119400.0,119390.0,0.62767128]
[1753369437752,0.81143606,119400.0,119390.0,0.62767128]
[1753369438452,0.81143606,119400.0,119390.0,0.62867128]
[1753369438653,0.81143606,119400.0,119390.0,0.62967128]
[1753369439360,0.82393606,119400.0,119390.0,0.62967128]
[1753369440258,0.77434606,119400.0,119390.0,0.62967128]
[1753369440457,0.02417606,119400.0,119390.0,2.21596078]
[1753369440760,0.17665604,119440.0,119400.0,0.23741]
[1753369440957,0.62316,119430.0,119420.0,1.04229958]
[1753369441454,0.12561,119430.0,119420.0,1.04229958]
[1753369441762,0.00145604,119440.0,119430.0,0.23741]
[1753369441961,0.04820927,119450.0,119440.0,0.23741]
[1753369442155,0.04820927,119450.0,119440.0,1.39226244]
[1753369442356,0.67112927,119450.0,119440.0,1.57871815]
[1753369442556,0.68421,119490.0,119460.0,0.11812]
[1753369442861,0.68421,119490.0,119480.0,0.23741]
[1753369443062,0.94637,119490.0,119480.0,0.23741]
[1753369443258,0.3608,119520.0,119490.0,0.11812]
[1753369443458,0.60833,119520.0,119510.0,0.23741]
[1753369443659,1.23201,119520.0,119510.0,0.32155451]
[1753369444058,1.23201,119520.0,119510.0,0.35094954]
[1753369444259,1.23201,119520.0,119510.0,0.34348834]
[1753369444260,0.60833,119520.0,119510.0,0.34348834]
[1753369444561,0.48641,119520.0,119510.0,0.34348834]
[1753369444759,1.03491,119520.0,119510.0,0.34448834]
[1753369445058,0.55297935,119530.0,119510.0,0.10707834]
[1753369445359,0.87413,119520.0,119510.0,0.08514451]
[1753369445559,1.64954939,119520.0,119510.0,0.08852941]
[1753369445762,1.64754939,119520.0,119510.0,0.08514451]
[1753369445957,0.24753,119510.0,119500.0,0.02193383]
[1753369446258,0.24753,119500.0,119490.0,0.01864282]
[1753369446455,0.77541939,119500.0,119480.0,0.02193383]
[1753369446656,1.02294939,119490.0,119480.0,0.02193383]
[1753369446859,0.24753,119480.0,119470.0,0.02193383]
[1753369447057,1.23305,119480.0,119470.0,0.02193383]
[1753369447258,1.52505502,119480.0,119460.0,0.02193383]
[1753369447462,0.77541939,119470.0,119460.0,0.06568702]
[1753369447766,0.77541939,119470.0,119440.0,0.16247957]
[1753369447957,0.3608,119450.0,119440.0,0.04435957]
[1753369448157,0.3608,119450.0,119440.0,0.01901571]
[1753369448158,0.60833,119450.0,119440.0,0.01901571]
[1753369448567,0.60833,119450.0,119440.0,0.4336351]
[1753369448760,1.23313,119450.0,119440.0,0.13713571]
[1753369448961,0.87293,119450.0,119440.0,0.13713571]
[1753369449160,0.24753,119450.0,119440.0,0.01901571]
[1753369449466,0.87281,119450.0,119440.0,0.25669571]
[1753369449868,1.23361,119450.0,119440.0,0.01901571]
[1753369450167,1.23361,119450.0,119440.0,0.02301571]
[1753369450373,1.64822939,119450.0,119440.0,0.02601571]
[1753369450863,1.64822939,119450.0,119440.0,0.09386507]
[1753369451067,1.23361,119450.0,119440.0,0.02601571]
[1753369451255,0.87237,119450.0,119440.0,0.02601571]
[1753369451457,1.23317,119450.0,119440.0,0.02601571]
[1753369451759,1.23317,119450.0,119440.0,0.01901571]
[1753369451958,1.23317,119450.0,119440.0,0.02101571]
[1753369452169,1.77350391,119450.0,119420.0,0.04095342]
[1753369452368,0.60046,119430.0,119420.0,0.04095342]
[1753369452578,1.22498,119430.0,119410.0,0.02534008]
[1753369452863,1.22498,119430.0,119400.0,0.26707503]
[1753369452864,1.22546,119420.0,119400.0,0.67423322]
[1753369453066,0.9858,119420.0,119410.0,0.02193383]
[1753369453263,0.3608,119420.0,119400.0,0.74152682]
[1753369453571,0.62488,119410.0,119400.0,0.68770743]
[1753369453769,0.62488,119410.0,119400.0,0.86464682]
[1753369453770,0.62468,119410.0,119400.0,0.86464682]
[1753369453959,0.3608,119420.0,119400.0,1.10580856]
[1753369454161,0.52855,119420.0,119410.0,0.65229939]
[1753369454357,0.16775,119430.0,119420.0,0.23768]
[1753369454661,0.6244,119430.0,119420.0,1.01609939]
[1753369454866,0.6244,119430.0,119420.0,1.01909939]
[1753369455363,1.49398,119450.0,119430.0,0.23768]
[1753369455567,0.62452,119440.0,119430.0,1.01309939]
[1753369455767,0.62452,119440.0,119430.0,0.59848]
[1753369455965,0.67125,119440.0,119430.0,1.01309939]
[1753369456175,0.04673,119440.0,119430.0,1.01309939]
[1753369456558,0.67157,119440.0,119430.0,1.01309939]
[1753369457167,0.67157,119440.0,119430.0,1.03503322]
[1753369457367,0.04673,119440.0,119430.0,1.03503322]
[1753369457769,0.04573,119440.0,119430.0,1.81248922]
[1753369458068,0.62404,119450.0,119440.0,0.18907]
[1753369458270,0.62404,119450.0,119440.0,0.5557685]
[1753369458570,1.68703,119480.0,119440.0,0.98475789]
[1753369458871,0.81837,119470.0,119460.0,0.11738]
[1753369459070,0.81837,119470.0,119460.0,0.18527442]
[1753369459667,0.81837,119470.0,119460.0,0.06789442]
[1753369459871,0.81837,119470.0,119450.0,0.5486885]
[1753369460169,0.04673,119460.0,119450.0,0.96330057]
[1753369460364,0.04673,119460.0,119450.0,1.03499057]
[1753369460763,0.67353,119460.0,119450.0,1.03499057]
[1753369461071,0.62676,119460.0,119450.0,1.03499057]
[1753369461264,1.32611,119480.0,119450.0,0.77641939]
[1753369461465,0.79671,119470.0,119460.0,1.03499526]
[1753369462072,0.24166,119470.0,119460.0,1.03499526]
[1753369462268,0.86658,119470.0,119460.0,0.62037587]
[1753369462472,0.86658,119470.0,119460.0,0.23768]
[1753369463274,0.86658,119470.0,119460.0,0.25957587]
[1753369463468,0.86658,119470.0,119460.0,0.23768]
[1753369463875,0.86658,119470.0,119460.0,0.30441697]
[1753369464472,1.64199939,119470.0,119460.0,0.06673697]
[1753369464673,1.64199939,119470.0,119450.0,0.012]
[1753369464674,0.60046,119470.0,119450.0,0.012]
[1753369464878,0.23966,119460.0,119450.0,0.012]
[1753369465366,0.23966,119460.0,119450.0,0.03389587]
[1753369465876,0.60046,119460.0,119450.0,0.03389587]
[1753369466076,1.01507939,119460.0,119450.0,0.012]
[1753369466373,0.60046,119460.0,119450.0,0.03389587]
[1753369466581,0.60046,119460.0,119450.0,0.03189587]
[1753369467679,0.61696,119460.0,119450.0,0.01]
[1753369468179,0.61496,119460.0,119450.0,0.01]
[1753369468377,0.61796,119460.0,119450.0,0.01]
[1753369469071,1.03257939,119460.0,119450.0,0.01]
[1753369469786,0.61796,119460.0,119450.0,0.01]
[1753369470171,1.03257939,119460.0,119450.0,0.01]
[1753369470573,0.23966,119450.0,119440.0,0.02198434]
[1753369470782,0.23966,119440.0,119430.0,0.02939503]
[1753369471083,0.77541939,119440.0,119420.0,0.02939503]
[1753369471287,0.86262,119430.0,119420.0,0.07800503]
[1753369471495,0.86262,119430.0,119420.0,0.19538503]
[1753369471684,0.62296,119430.0,119420.0,1.04249442]
[1753369471884,0.19293,119440.0,119430.0,0.23768]
[1753369472181,0.82093,119440.0,119430.0,0.26699614]
[1753369472382,1.22846,119440.0,119430.0,0.07792614]
[1753369472573,1.22846,119440.0,119430.0,0.04861]
[1753369472777,0.23966,119430.0,119420.0,0.03031614]
[1753369473181,0.23966,119430.0,119420.0,0.07892614]
[1753369474285,2.12238,119430.0,119420.0,0.49254553]
[1753369474490,2.12238,119430.0,119420.0,0.49354553]
[1753369474881,0.74926,119430.0,119420.0,0.65329939]
[1753369475076,0.19293,119440.0,119430.0,0.23768]
[1753369475285,0.74926,119440.0,119430.0,1.05730467]
[1753369475482,0.74926,119440.0,119430.0,0.64268528]
[1753369475681,0.82117,119440.0,119430.0,0.6278211]
[1753369475885,1.2287,119440.0,119430.0,0.0779511]
[1753369476495,0.60046,119440.0,119430.0,0.0779511]
[1753369476683,1.2315,119440.0,119430.0,0.0779511]
[1753369477488,1.2315,119440.0,119430.0,0.04861]
[1753369478987,0.23966,119430.0,119420.0,0.0779511]
[1753369479190,0.60046,119430.0,119420.0,0.0779511]
[1753369480083,0.60046,119430.0,119420.0,0.04861]
[1753369480596,0.23966,119430.0,119420.0,0.04861]
[1753369480989,0.23966,119430.0,119420.0,0.0789511]
[1753369481189,0.82145,119430.0,119420.0,0.0789511]
[1753369481594,0.82145,119430.0,119420.0,0.04961]
[1753369481795,0.82145,119430.0,119420.0,0.05061]
[1753369482290,0.82133,119430.0,119420.0,0.05061]
[1753369482492,0.82133,119430.0,119420.0,0.17572]
[1753369483289,0.62836,119430.0,119420.0,1.05295049]
[1753369483701,0.75156,119430.0,119420.0,0.3921411]
[1753369484003,0.82405,119430.0,119420.0,0.3921411]
[1753369484191,0.82405,119430.0,119420.0,0.4415411]
[1753369484384,0.19573,119430.0,119420.0,1.05374049]
[1753369484583,0.82381,119430.0,119420.0,1.05374049]
[1753369485099,0.82381,119430.0,119420.0,0.6391211]
[1753369485302,0.82381,119430.0,119420.0,1.05374049]
[1753369485598,0.19573,119430.0,119420.0,1.05374049]
[1753369485794,0.82357,119430.0,119420.0,0.6391211]
[1753369486094,0.82357,119430.0,119420.0,0.69294049]
[1753369487295,0.82357,119430.0,119420.0,0.2783211]
[1753369487493,0.82357,119430.0,119420.0,0.69294049]
[1753369488894,0.82357,119430.0,119420.0,0.2783211]
[1753369489096,0.82357,119430.0,119420.0,0.2058511]
[1753369489600,0.82567,119430.0,119420.0,0.0807411]
[1753369490101,0.82357,119430.0,119420.0,0.2058511]
[1753369490399,0.82357,119430.0,119420.0,0.2783211]
[1753369492296,1.18437,119430.0,119420.0,0.0807411]
[1753369492602,1.72637052,119430.0,119420.0,0.002]
[1753369493004,1.72637052,119430.0,119420.0,0.0514]
[1753369493298,1.31175113,119430.0,119420.0,0.0514]
[1753369493500,1.30831113,119430.0,119420.0,0.0514]
[1753369493701,1.30811113,119430.0,119420.0,0.0514]
[1753369494402,0.68391113,119430.0,119420.0,0.0514]
[1753369494606,1.30815113,119430.0,119420.0,0.0514]
[1753369495802,1.44545113,119430.0,119420.0,0.0807411]
[1753369497005,1.86007052,119430.0,119420.0,0.0807411]
[1753369498704,1.44545113,119430.0,119420.0,0.0807411]
[1753369499604,1.44385113,119430.0,119420.0,0.0807411]
[1753369499902,0.82205113,119430.0,119420.0,0.0807411]
[1753369500103,1.44385113,119430.0,119420.0,0.0807411]
[1753369500301,0.82205113,119430.0,119420.0,0.0807411]
[1753369500503,0.33387,119430.0,119420.0,0.69588577]
[1753369500801,1.73278939,119430.0,119420.0,0.03144119]
[1753369500997,0.33597,119420.0,119410.0,0.04420528]
[1753369501196,0.2082,119410.0,119380.0,0.0494]
[1753369501396,0.96610939,119390.0,119380.0,0.01190508]
[1753369501597,0.19069,119370.0,119360.0,0.05877002]
[1753369501798,1.94842939,119370.0,119350.0,0.12497561]
[1753369501998,0.11776,119340.0,119330.0,0.07356252]
[1753369502199,2.14769939,119340.0,119330.0,0.07356252]
[1753369502400,2.89735534,119340.0,119330.0,0.07356252]
[1753369502708,2.89735534,119340.0,119320.0,0.07362342]
[1753369502709,2.77959534,119340.0,119320.0,0.07362342]
[1753369502904,0.83775939,119330.0,119320.0,0.00440999]
[1753369503204,0.06234,119320.0,119310.0,0.4102]
[1753369503404,0.06234,119320.0,119310.0,0.47795614]
[1753369503808,0.62312,119320.0,119310.0,0.84317553]
[1753369504300,0.62312,119320.0,119310.0,0.43308375]
[1753369504502,0.62312,119320.0,119310.0,0.68006375]
[1753369504697,0.62312,119320.0,119310.0,0.48248375]
[1753369504698,1.10007939,119320.0,119310.0,0.48248375]
[1753369504909,1.04626,119320.0,119310.0,0.12168375]
[1753369505105,1.04626,119320.0,119310.0,0.12568375]
[1753369505299,1.58605881,119320.0,119310.0,0.07628375]
[1753369505506,1.58605881,119320.0,119310.0,0.004]
[1753369506205,0.54831942,119320.0,119310.0,0.004]
[1753369506407,0.68526,119320.0,119310.0,1.02639939]
[1753369506706,0.06234,119340.0,119320.0,0.24698]
[1753369506909,0.68554,119340.0,119330.0,1.38319939]
[1753369507108,0.6861,119350.0,119340.0,0.24698]
[1753369507311,0.62376,119350.0,119340.0,1.02239939]
[1753369507513,0.1879346,119370.0,119360.0,0.24698]
[1753369507713,0.1255946,119370.0,119360.0,1.38319939]
[1753369507911,0.62392,119380.0,119370.0,0.24698]
[1753369508100,0.62392,119380.0,119370.0,1.02239939]
[1753369508411,0.62388,119390.0,119380.0,0.24698]
[1753369508601,0.62388,119390.0,119380.0,1.02239939]
[1753369509203,1.31734,119420.0,119380.0,0.94294739]
[1753369509398,1.31734,119420.0,119410.0,1.02630939]
[1753369509614,1.94118,119420.0,119410.0,0.73201926]
[1753369509914,1.94118,119420.0,119410.0,1.02630939]
[1753369510106,1.94146,119420.0,119410.0,0.66550939]
[1753369510308,1.94146,119420.0,119410.0,0.25089]
[1753369510508,1.31734,119420.0,119410.0,0.17726]
[1753369510709,1.9413,119420.0,119410.0,0.17726]
[1753369510910,2.3061,119420.0,119410.0,0.04932]
[1753369511215,1.9453,119420.0,119410.0,0.04932]
[1753369511905,1.9473,119420.0,119410.0,0.04932]
[1753369513307,1.9473,119420.0,119410.0,0.17726]
[1753369513506,1.9433,119420.0,119410.0,0.17726]
[1753369513814,1.31934,119420.0,119410.0,0.17726]
[1753369514014,1.94366,119420.0,119410.0,0.17726]
[1753369514201,1.94366,119420.0,119410.0,1.01179981]
[1753369514202,0.62632,119420.0,119410.0,1.01179981]
[1753369515307,0.68866,119420.0,119410.0,0.67962064]
[1753369515514,0.68866,119420.0,119410.0,0.47805064]
[1753369515713,0.68866,119420.0,119410.0,0.41012]
[1753369515918,0.68666,119420.0,119410.0,0.41012]
[1753369516418,0.68722,119420.0,119410.0,0.41012]
[1753369517116,0.68822,119420.0,119410.0,0.04932]
[1753369517413,0.06234,119410.0,119390.0,0.41012]
[1753369517615,0.62376,119400.0,119390.0,0.41012]
[1753369517816,0.06234,119400.0,119390.0,0.61169]
[1753369518116,0.12575348,119410.0,119400.0,0.25089]
[1753369518117,0.06234,119410.0,119400.0,0.25089]
[1753369518414,0.62308,119410.0,119400.0,0.94831676]
[1753369518717,0.68542,119410.0,119400.0,0.58751676]
[1753369519020,0.06234,119410.0,119400.0,0.18170759]
[1753369519315,0.68582,119410.0,119400.0,0.05376759]
[1753369519713,0.06234,119410.0,119400.0,0.05376759]
[1753369519917,0.06234,119410.0,119400.0,0.25533759]
[1753369520117,0.06234,119410.0,119400.0,0.94831676]
[1753369520118,0.62316,119410.0,119400.0,0.94831676]
[1753369520511,0.62416,119410.0,119400.0,0.94831676]
[1753369520711,0.6865,119410.0,119400.0,0.25533759]
[1753369520912,0.6865,119410.0,119400.0,0.05376759]
[1753369522016,0.06234,119400.0,119390.0,0.11601115]
[1753369522211,0.06234,119400.0,119390.0,0.04932]
[1753369522613,0.18781582,119400.0,119380.0,0.48874]
[1753369522916,0.68498,119390.0,119380.0,0.4145216]
[1753369523415,0.68498,119390.0,119370.0,0.42322316]
[1753369523617,0.12597733,119390.0,119380.0,0.33217917]
[1753369523815,0.62256,119400.0,119380.0,0.98699781]
[1753369524021,0.62256,119400.0,119390.0,0.69297917]
[1753369524219,0.62256,119400.0,119390.0,0.94386917]
[1753369524615,1.31706,119420.0,119390.0,0.94386917]
[1753369524816,1.2372,119420.0,119410.0,0.94386917]
[1753369525321,1.8594,119420.0,119410.0,0.94386917]
[1753369525723,1.8592,119420.0,119410.0,0.94386917]
[1753369526119,1.2372,119420.0,119410.0,0.94386917]
[1753369526322,0.62188,119420.0,119410.0,0.94386917]
[1753369527819,0.62288,119420.0,119410.0,0.94386917]
[1753369529729,0.68522,119420.0,119410.0,0.94386917]
[1753369530221,0.68722,119420.0,119410.0,0.94386917]
[1753369530731,0.68622,119420.0,119410.0,0.94386917]
[1753369531029,0.68622,119420.0,119410.0,0.94486917]
[1753369531229,0.68522,119420.0,119410.0,0.94486917]
[1753369531621,0.68522,119420.0,119410.0,0.94386917]
[1753369532131,0.68522,119420.0,119410.0,0.61169]
[1753369533133,0.68522,119420.0,119410.0,0.25089]
[1753369533427,0.68522,119420.0,119410.0,0.66503814]
[1753369533630,0.68522,119420.0,119410.0,1.02583814]
[1753369533831,0.68522,119420.0,119410.0,0.66503814]
[1753369534031,0.68522,119420.0,119410.0,1.02583814]
[1753369534225,0.68522,119420.0,119410.0,0.66503814]
[1753369534626,1.04602,119420.0,119410.0,0.17726]
[1753369534831,0.68522,119420.0,119410.0,0.17726]
[1753369535433,0.68522,119420.0,119410.0,0.59140814]
[1753369535928,0.68522,119420.0,119410.0,0.46346814]
[1753369536136,0.69353,119420.0,119410.0,0.04932]
[1753369536532,0.69353,119420.0,119410.0,0.46346814]
[1753369537527,1.04602,119420.0,119410.0,0.59140814]
[1753369537737,0.62108,119420.0,119410.0,1.02583814]
[1753369537934,0.62108,119420.0,119410.0,1.055145]
[1753369538738,0.62108,119420.0,119410.0,1.02583814]
[1753369539224,0.001,119420.0,119410.0,1.35583814]
[1753369539425,0.62104,119420.0,119410.0,1.02583814]
[1753369539637,0.001,119420.0,119410.0,1.055145]
[1753369539825,0.62004,119420.0,119410.0,1.02583814]
[1753369540029,0.62004,119420.0,119410.0,1.02683814]
[1753369540432,0.62004,119420.0,119410.0,1.056145]
[1753369540728,0.68238,119420.0,119410.0,1.02583814]
[1753369540929,0.06234,119420.0,119410.0,0.66603814]
[1753369541137,0.68238,119420.0,119410.0,0.25189]
[1753369541532,0.68238,119420.0,119410.0,0.66603814]
[1753369542340,0.68238,119420.0,119410.0,0.25189]
[1753369542533,0.68238,119420.0,119410.0,0.66603814]
[1753369543035,0.69069,119420.0,119410.0,0.17726]
[1753369543533,0.69169,119420.0,119410.0,0.17726]
[1753369543930,0.68338,119420.0,119410.0,0.17726]
[1753369544132,0.68538,119420.0,119410.0,0.20656686]
[1753369544734,0.68538,119420.0,119410.0,0.692535]
[1753369544934,0.06534,119420.0,119410.0,0.686065]
[1753369545141,0.62304,119420.0,119410.0,1.01755814]
[1753369545337,0.62304,119420.0,119410.0,1.06157678]
[1753369545736,0.003,119420.0,119410.0,1.06157678]
[1753369545935,0.623,119420.0,119410.0,1.06157678]
[1753369546240,0.622,119420.0,119410.0,1.06157678]
[1753369546440,0.622,119420.0,119410.0,1.06257678]
[1753369547443,0.62,119420.0,119410.0,1.06257678]
[1753369549044,0.6201,119430.0,119410.0,0.81996678]
[1753369549245,0.68244,119430.0,119420.0,1.01381814]
[1753369550446,0.68244,119430.0,119420.0,1.04320042]
[1753369550645,0.68244,119430.0,119420.0,1.04320301]
[1753369550845,0.68244,119430.0,119420.0,0.62905487]
[1753369551143,0.69175,119430.0,119420.0,0.55723487]
[1753369551947,0.07175,119430.0,119420.0,0.55723487]
[1753369552140,0.69171,119430.0,119420.0,0.55723487]
[1753369552841,0.69171,119430.0,119420.0,0.07496487]
[1753369554845,0.69171,119430.0,119420.0,0.02938487]
[1753369555643,1.05251,119430.0,119420.0,0.02938487]
[1753369555949,1.05247,119430.0,119420.0,0.02938487]
[1753369556339,1.05247,119430.0,119420.0,0.07496487]
[1753369557837,0.06913,119420.0,119410.0,0.07496487]
[1753369558147,0.49227,119420.0,119410.0,0.07496487]
[1753369558444,0.90641814,119420.0,119410.0,0.02938487]
[1753369558747,1.03260728,119420.0,119410.0,0.02938487]
[1753369558948,0.61845914,119420.0,119410.0,0.07596487]
[1753369559139,0.61845914,119420.0,119410.0,0.19743487]
[1753369559140,0.87749914,119420.0,119410.0,0.19743487]
[1753369559651,1.23829914,119420.0,119410.0,0.19743487]
[1753369559840,0.61845914,119420.0,119410.0,0.19743487]
[1753369560041,1.23829914,119420.0,119410.0,0.07596487]
[1753369560253,1.23829914,119420.0,119410.0,0.04658]
[1753369561254,1.24029914,119420.0,119410.0,0.04658]
[1753369562349,1.24029914,119420.0,119410.0,0.16805]
[1753369562648,1.24029914,119420.0,119410.0,0.04658]
[1753369564455,1.24029914,119420.0,119410.0,0.04558]
[1753369564751,1.24129914,119420.0,119400.0,0.19643487]
[1753369564945,0.13147,119410.0,119400.0,0.19643487]
[1753369565136,0.13147,119410.0,119400.0,0.61058301]
[1753369565545,0.12316,119410.0,119400.0,0.84457301]
[1753369566349,0.12316,119410.0,119400.0,0.43042487]
[1753369566553,0.12316,119410.0,119400.0,0.84457301]
[1753369567346,0.001,119420.0,119400.0,1.20537301]
[1753369567544,0.06234,119420.0,119410.0,0.84457301]
[1753369567744,0.68206,119420.0,119410.0,0.84457301]
[1753369568153,0.72959,119420.0,119410.0,0.84457301]
[1753369568355,0.74288,119420.0,119410.0,1.20537301]
[1753369568649,0.06244,119430.0,119420.0,0.23887]
[1753369568852,0.72969,119430.0,119420.0,0.84457301]
[1753369569149,0.74298,119430.0,119420.0,0.86296114]
[1753369569552,0.12326,119430.0,119420.0,0.86296114]
[1753369569752,0.74294,119430.0,119420.0,0.86296114]
[1753369570347,0.12326,119430.0,119420.0,1.22376114]
[1753369570548,0.7429,119430.0,119420.0,1.22376114]
[1753369570748,0.72961,119430.0,119420.0,1.22376114]
[1753369571449,0.73061,119430.0,119420.0,1.22376114]
[1753369572249,0.6207,119430.0,119420.0,1.22376114]
[1753369572449,0.0011,119430.0,119420.0,1.61184827]
[1753369572654,0.62066,119430.0,119420.0,1.93184827]
[1753369572859,0.62066,119430.0,119420.0,1.65586691]
[1753369573055,0.75227,119430.0,119420.0,0.21106864]
[1753369573249,1.05211,119430.0,119420.0,0.07499447]
[1753369573560,2.30663,119430.0,119420.0,0.07499447]
[1753369575150,2.72077814,119430.0,119420.0,0.02941447]
[1753369575460,2.30663,119430.0,119420.0,0.03041447]
[1753369576056,2.72077814,119430.0,119420.0,0.03041447]
[1753369576955,2.72077814,119430.0,119420.0,0.001]
[1753369577153,2.30663,119430.0,119420.0,0.001]
[1753369577349,2.30663,119430.0,119410.0,0.07470447]
[1753369577350,2.72077814,119430.0,119410.0,0.07470447]
[1753369577550,0.07065,119420.0,119410.0,0.07470447]
[1753369577945,0.13161,119420.0,119410.0,0.07470447]
[1753369578653,0.13161,119420.0,119410.0,0.07570447]
[1753369579360,0.49241,119420.0,119410.0,0.03041447]
[1753369579854,0.49441,119420.0,119410.0,0.07570447]
[1753369580157,1.11377,119420.0,119410.0,0.19650447]
[1753369580952,1.11377,119420.0,119410.0,0.16709]
[1753369581355,1.11377,119420.0,119410.0,0.16609]
[1753369581552,0.74562,119420.0,119410.0,0.34833]
[1753369581747,0.74562,119420.0,119410.0,0.42343447]
[1753369582354,1.10642,119420.0,119410.0,0.35242447]
[1753369582858,1.11473,119420.0,119410.0,0.35242447]
[1753369583563,1.11473,119420.0,119410.0,0.42343447]
[1753369583766,1.10642,119420.0,119410.0,0.42343447]
[1753369583969,0.1263,119420.0,119410.0,0.42343447]
[1753369584178,0.7455,119420.0,119410.0,0.42343447]
[1753369585179,0.1263,119420.0,119410.0,0.42343447]
[1753369585876,0.74546,119420.0,119410.0,0.42343447]
[1753369587271,0.75377,119420.0,119410.0,0.42343447]
[1753369587773,0.1263,119420.0,119410.0,1.19838261]
[1753369588080,0.74538,119420.0,119410.0,1.19838261]
[1753369588280,0.74538,119420.0,119410.0,0.78423447]
[1753369588576,0.74538,119420.0,119410.0,1.19838261]
[1753369589772,0.003,119420.0,119410.0,1.19838261]
[1753369589977,0.003,119420.0,119410.0,1.57298678]
[1753369590179,0.622,119420.0,119410.0,1.55298678]
[1753369590384,0.003,119420.0,119410.0,1.28298678]
[1753369590587,0.622,119420.0,119410.0,1.55298678]
[1753369590989,0.621,119420.0,119410.0,1.21298678]
[1753369591584,0.621,119420.0,119410.0,1.52298678]
[1753369591788,0.621,119420.0,119410.0,1.28298678]
[1753369591982,0.619,119420.0,119410.0,1.59298678]
[1753369592182,0.62,119420.0,119410.0,0.75582]
[1753369592381,0.62,119420.0,119410.0,1.16996814]